fUST/lending_fUST_20240625
["ID","MTS","AMOUNT","RATE_DAILY","PERIOD"]
[330332008,1719259856919,-7898.32,0.00018356,2]
[330332009,1719259856928,-500.0,0.00018356,2]
[330332010,1719259856938,-500.0,0.00018356,2]
[330332011,1719259856947,-500.0,0.00018356,2]
[330332012,1719259856958,-500.0,0.00018356,2]
[330332013,1719259856968,-351.36678707,0.00018356,2]
[330332014,1719259856978,-1119.0,0.00018356,2]
[330332015,1719259856987,-897.15,0.00018356,2]
[330332016,1719259856998,-500.0,0.00018356,2]
[330332017,1719259857007,-500.0,0.00018356,2]
[330332018,1719259857018,-4161.03,0.00018356,2]
[330332019,1719259857027,-500.0,0.00018356,2]
[330332020,1719259857038,-500.0,0.00018356,2]
[330332021,1719259857048,-500.0,0.00018356,2]
[330332022,1719259857058,-500.0,0.00018356,2]
[330332023,1719259857068,-1351.04952,0.00018374,2]
[330332024,1719259857078,-1633.071473,0.00018374,2]
[330332025,1719259857088,-160.0,0.00018375,5]
[330332026,1719259857098,-183.753107,0.00018444,2]
[330332027,1719259857107,-620.00258473,0.00018585,2]
[330332028,1719259857117,-924.72,0.0001863,2]
[330332029,1719259857130,-500.0,0.0001863,2]
[330332030,1719259857140,-500.0,0.0001863,2]
[330332031,1719259857149,-1221.02,0.0001863,2]
[330332032,1719259857159,-770.11,0.0001863,2]
[330332033,1719259857168,-500.0,0.0001863,2]
[330332034,1719259857178,-500.0,0.0001863,2]
[330332035,1719259857189,-500.0,0.0001863,2]
[330332036,1719259857203,-500.0,0.0001863,2]
[330332037,1719259857213,-500.0,0.0001863,2]
[330332038,1719259857222,-1031.19,0.0001863,2]
[330332039,1719259857231,-500.0,0.0001863,2]
[330332040,1719259857243,-500.0,0.0001863,2]
[330332041,1719259857252,-538.5,0.0001863,2]
[330332042,1719259857263,-505.61,0.0001863,2]
[330332043,1719259857273,-1156.06,0.0001863,2]
[330332044,1719259857282,-500.0,0.0001863,2]
[330332045,1719259857291,-774.21,0.0001863,2]
[330332046,1719259857300,-500.0,0.0001863,2]
[330332047,1719259857310,-1344.49,0.0001863,2]
[330332048,1719259857320,-500.0,0.0001863,2]
[330332049,1719259857330,-500.0,0.0001863,2]
[330332050,1719259857339,-500.0,0.0001863,2]
[330332051,1719259857348,-500.0,0.0001863,2]
[330332052,1719259857357,-500.0,0.0001863,2]
[330332053,1719259857367,-580.26,0.0001863,2]
[330332054,1719259857378,-500.0,0.0001863,2]
[330332055,1719259857387,-500.0,0.0001863,2]
[330332056,1719259857396,-1208.15,0.0001863,2]
[330332057,1719259857404,-565.43,0.0001863,2]
[330332058,1719259857414,-1319.39,0.0001863,2]
[330332059,1719259857423,-500.0,0.0001863,2]
[330332060,1719259857433,-500.0,0.0001863,2]
[330332061,1719259857442,-500.0,0.0001863,2]
[330332062,1719259857451,-514.22,0.0001863,2]
[330332063,1719259857462,-500.0,0.0001863,2]
[330332064,1719259857472,-564.23,0.0001863,2]
[330332065,1719259857482,-777.55,0.0001863,2]
[330332066,1719259857491,-500.0,0.0001863,2]
[330332067,1719259857500,-1037.99,0.0001863,2]
[330332068,1719259857510,-2811.88,0.0001863,2]
[330332069,1719259857519,-672.9,0.0001863,2]
[330332070,1719259857529,-500.0,0.0001863,2]
[330332071,1719259857538,-5018.5,0.0001863,2]
[330332072,1719259857547,-500.0,0.0001863,2]
[330332073,1719259857556,-500.0,0.0001863,2]
[330332074,1719259857566,-500.0,0.0001863,2]
[330332075,1719259857575,-500.0,0.0001863,2]
[330332076,1719259857585,-508.48,0.0001863,2]
[330332077,1719259857594,-1021.24,0.0001863,2]
[330332078,1719259857603,-1040.35,0.0001863,2]
[330332079,1719259857612,-4287.47,0.0001863,2]
[330332080,1719259857622,-1436.97,0.0001863,2]
[330332081,1719259857635,-500.0,0.0001863,2]
[330332082,1719259857644,-500.0,0.0001863,2]
[330332083,1719259857653,-2632.12,0.0001863,2]
[330332084,1719259857662,-5699.86,0.0001863,2]
[330332085,1719259857671,-500.0,0.0001863,2]
[330332086,1719259857680,-3606.75,0.0001863,2]
[330332087,1719259857690,-458.11739854,0.0001863,2]
[330332088,1719259857700,-1225.16,0.0001863,2]
[330332089,1719259857709,-10085.71,0.0001863,2]
[330332090,1719259857718,-731.23,0.0001863,2]
[330332091,1719259857728,-500.0,0.0001863,2]
[330332092,1719259857737,-500.0,0.0001863,2]
[330332093,1719259857747,-570.53715415,0.0001863,2]
[330332094,1719259857756,-500.0,0.0001863,2]
[330332095,1719259857766,-646.63,0.0001863,2]
[330332096,1719259857775,-7884.49,0.0001863,2]
[330332097,1719259857784,-500.0,0.0001863,2]
[330332098,1719259857793,-755.42,0.0001863,2]
[330332099,1719259857803,-1387.03,0.0001863,2]
[330332100,1719259857813,-500.0,0.0001863,2]
[330332101,1719259857822,-500.0,0.0001863,2]
[330332102,1719259857831,-866.22,0.0001863,2]
[330332103,1719259857841,-654.7,0.0001863,2]
[330332104,1719259857850,-500.0,0.0001863,2]
[330332105,1719259857860,-500.0,0.0001863,2]
[330332106,1719259857869,-651.34,0.0001863,2]
[330332107,1719259857879,-2884.02,0.0001863,2]
[330332108,1719259857888,-2152.08,0.0001863,2]
[330332109,1719259857898,-500.0,0.0001863,2]
[330332110,1719259857907,-500.0,0.0001863,2]
[330332111,1719259857917,-522.58,0.0001863,2]
[330332112,1719259857927,-1335.42,0.0001863,2]
[330332113,1719259857936,-1219.59,0.0001863,2]
[330332114,1719259857946,-7898.32,0.0001863,2]
[330332115,1719259857956,-500.0,0.0001863,2]
[330332116,1719259857965,-500.0,0.0001863,2]
[330332117,1719259857975,-500.0,0.0001863,2]
[330332118,1719259857984,-430.77855621,0.0001863,2]
[330332119,1719259857994,-1119.0,0.0001863,2]
[330332120,1719259858004,-897.15,0.0001863,2]
[330332121,1719259858013,-500.0,0.0001863,2]
[330332122,1719259858022,-500.0,0.0001863,2]
[330332123,1719259858032,-4161.03,0.0001863,2]
[330332124,1719259858041,-500.0,0.0001863,2]
[330332125,1719259858050,-500.0,0.0001863,2]
[330332126,1719259858060,-500.0,0.0001863,2]
[330332127,1719259858070,-500.0,0.0001863,2]
[330332128,1719259858079,-160.0,0.00018649,6]
[330332129,1719259858089,-320.0,0.00018681,2]
[330332130,1719259858098,-799951.17846926,0.000189,2]
[330332297,1719259910201,241.57873595,0.00022909,60]
[330333941,1719259960778,157.894736,0.00013699,2]
[330336181,1719260195930,161.211493,0.00023562,61]
[330336182,1719260196176,161.211493,0.00023562,80]
[330336183,1719260196415,161.211493,0.00023562,100]
[330336184,1719260196619,161.211493,0.00023562,120]
[330336185,1719260529347,2771.3357513,0.00013699,2]
[330336186,1719260548325,157.894736,0.00013699,2]
[330336188,1719260647985,289.99883532,0.00013939,2]
[330336190,1719260761328,300.0,0.00014,2]
[330336191,1719260769533,300.0,0.00014,2]
[330336193,1719260821239,300.0,0.00014,2]
[330336194,1719260827469,300.0,0.00014,2]
[330336195,1719260867749,7882.9252344,0.00013938,2]
[330336196,1719260881690,234.0,0.00014,2]
[330336197,1719260955505,-863.46000742,0.00014001,2]
[330336198,1719260955566,-863.46000742,0.00014001,2]
[330336199,1719260980212,-186.77324276,0.00014001,2]
[330336200,1719260980248,-711.22516496,0.00014001,2]
[330336201,1719260980299,-573.24286661,0.00014001,2]
[330336202,1719260980334,-324.75554111,0.00014001,2]
[330336203,1719260980372,-587.37640548,0.00014001,2]
[330336204,1719261005225,-945.66587213,0.00014001,2]
[330336205,1719261005282,-945.66587213,0.00014001,2]
[330336206,1719261025839,195.47966853,9.999e-05,2]
[330336265,1719261035643,-1821.20639829,0.00014001,2]
[330336267,1719261035656,-1835.38733964,0.00014001,2]
[330336269,1719261035669,-1002.09207146,0.00014001,2]
[330336271,1719261035681,-2948.72,0.00014001,2]
[330336384,1719261038936,-17805.36048,0.00014001,2]
[330336386,1719261038950,-744.0,0.00014001,2]
[330336388,1719261038964,-13220.37215964,0.00014001,2]
[330336390,1719261038976,-11118.98907716,0.00014001,2]
[330336392,1719261038988,-17227.699458,0.00014001,2]
[330336393,1719261038999,-2580.89461927,0.00014991,2]
[330336394,1719261039011,-26057.44447196,0.00015076,2]
[330336395,1719261039023,-3238.46724977,0.00015079,2]
[330336396,1719261039035,-5976.32898376,0.00015119,2]
[330336397,1719261039058,-441.64032325,0.00015327,2]
[330336398,1719261039069,-2580.89461924,0.00015328,2]
[330336399,1719261039081,-2580.89461924,0.00015665,2]
[330336400,1719261039093,-933.08575257,0.00016,2]
[330336401,1719261039104,-2580.89461924,0.00016001,2]
[330336402,1719261039114,-1313.011853,0.00016105,2]
[330336403,1719261039124,-2825.49865465,0.00016106,2]
[330336404,1719261039135,-258.80025544,0.00016106,2]
[330336405,1719261039146,-2040.81356743,0.00016106,2]
[330336406,1719261039156,-401.65252924,0.00016107,2]
[330336407,1719261039167,-30000.0,0.00016114,2]
[330336408,1719261039177,-373.78265909,0.00016117,2]
[330336409,1719261039187,-947.4992689,0.00016171,2]
[330336410,1719261039197,-6174.34174894,0.00016171,2]
[330336411,1719261039208,-179.20122481,0.00016171,2]
[330336412,1719261039218,-1191.50924941,0.00016321,2]
[330336413,1719261039229,-199.83014591,0.00016321,2]
[330336414,1719261039240,-2000.0,0.00016322,2]
[330336415,1719261039252,-155.000775,0.00016335,2]
[330336416,1719261039263,-521.06468489,0.00016337,7]
[330336417,1719261039274,-2580.89461924,0.00016338,2]
[330336419,1719261039285,-199.88160669,0.0001641,2]
[330336420,1719261039303,-155.000775,0.00016411,2]
[330336421,1719261039314,-491.33508365,0.00016413,2]
[330336422,1719261039326,-528.35763444,0.00016413,2]
[330336423,1719261039337,-176.00680323,0.00016414,2]
[330336424,1719261039348,-207.71530322,0.00016414,2]
[330336425,1719261039361,-159.35965211,0.00016414,2]
[330336426,1719261039372,-661.02191693,0.00016415,2]
[330336427,1719261039383,-882.91797888,0.00016416,2]
[330336428,1719261039395,-431.43442061,0.00016417,2]
[330336429,1719261039406,-500.0,0.00016438,2]
[330336430,1719261039417,-500.0,0.00016438,2]
[330336431,1719261039428,-555.16516051,0.00016438,2]
[330336432,1719261039438,-500.0,0.00016438,2]
[330336433,1719261039450,-411.95587454,0.00016438,2]
[330336434,1719261039462,-500.0,0.00016438,2]
[330336435,1719261039472,-500.0,0.00016438,2]
[330336436,1719261039483,-611.12,0.00016438,2]
[330336437,1719261039493,-516.02564205,0.00016438,2]
[330336438,1719261039504,-500.0,0.00016438,2]
[330336439,1719261039515,-500.0,0.00016438,2]
[330336440,1719261039525,-500.0,0.00016438,2]
[330336441,1719261039535,-500.0,0.00016438,2]
[330336442,1719261039556,-500.0,0.00016438,2]
[330336443,1719261039567,-500.0,0.00016438,2]
[330336444,1719261039578,-500.0,0.00016438,2]
[330336445,1719261039594,-500.0,0.00016438,2]
[330336446,1719261039607,-500.0,0.00016438,2]
[330336447,1719261039617,-500.0,0.00016438,2]
[330336448,1719261039628,-504.68688583,0.00016438,2]
[330336449,1719261039640,-500.0,0.00016438,2]
[330336450,1719261039652,-500.0,0.00016438,2]
[330336451,1719261039662,-508.19156623,0.00016438,2]
[330336452,1719261039673,-250.0,0.00016438,2]
[330336453,1719261039684,-500.0,0.00016438,2]
[330336454,1719261039694,-500.0,0.00016438,2]
[330336455,1719261039705,-259.18808423,0.00016438,2]
[330336456,1719261039715,-500.0,0.00016438,2]
[330336457,1719261039727,-608.43824242,0.00016438,2]
[330336458,1719261039738,-500.0,0.00016438,2]
[330336459,1719261039748,-509.38823112,0.00016438,2]
[330336460,1719261039758,-500.0,0.00016438,2]
[330336461,1719261039768,-500.0,0.00016438,2]
[330336462,1719261039777,-500.0,0.00016438,2]
[330336463,1719261039787,-500.0,0.00016438,2]
[330336464,1719261039801,-500.0,0.00016438,2]
[330336465,1719261039811,-610.54721276,0.00016438,2]
[330336466,1719261039821,-500.0,0.00016438,2]
[330336467,1719261039831,-500.0,0.00016438,2]
[330336468,1719261039841,-500.0,0.00016438,2]
[330336469,1719261039851,-500.0,0.00016438,2]
[330336470,1719261039860,-500.0,0.00016438,2]
[330336471,1719261039870,-500.0,0.00016438,2]
[330336472,1719261039880,-500.0,0.00016438,2]
[330336473,1719261039890,-420.79849247,0.00016438,2]
[330336474,1719261039900,-505.4030345,0.00016438,2]
[330336475,1719261039911,-500.0,0.00016438,2]
[330336476,1719261039921,-500.0,0.00016438,2]
[330336477,1719261039932,-500.0,0.00016438,2]
[330336478,1719261039942,-500.0,0.00016438,2]
[330336479,1719261039953,-500.0,0.00016438,2]
[330336480,1719261039964,-500.0,0.00016438,2]
[330336481,1719261039975,-500.0,0.00016438,2]
[330336482,1719261039985,-500.0,0.00016438,2]
[330336483,1719261039995,-503.76418704,0.00016438,2]
[330336484,1719261040005,-500.0,0.00016438,2]
[330336485,1719261040015,-500.0,0.00016438,2]
[330336486,1719261040026,-500.0,0.00016438,2]
[330336487,1719261040036,-500.0,0.00016438,2]
[330336488,1719261040051,-500.0,0.00016438,2]
[330336489,1719261040061,-500.0,0.00016438,2]
[330336490,1719261040071,-500.0,0.00016438,2]
[330336491,1719261040080,-500.0,0.00016438,2]
[330336492,1719261040090,-500.0,0.00016438,2]
[330336493,1719261040099,-500.0,0.00016438,2]
[330336494,1719261040108,-500.0,0.00016438,2]
[330336495,1719261040118,-500.0,0.00016438,2]
[330336496,1719261040128,-500.0,0.00016438,2]
[330336497,1719261040139,-500.0,0.00016438,2]
[330336498,1719261040150,-500.0,0.00016438,2]
[330336499,1719261040160,-528.37725039,0.00016438,2]
[330336500,1719261040170,-500.0,0.00016438,2]
[330336501,1719261040180,-506.22622148,0.00016438,2]
[330336502,1719261040190,-500.0,0.00016438,2]
[330336503,1719261040200,-500.0,0.00016438,2]
[330336504,1719261040210,-500.0,0.00016438,2]
[330336505,1719261040221,-503.24913067,0.00016438,2]
[330336506,1719261040231,-500.0,0.00016438,2]
[330336507,1719261040241,-500.0,0.00016438,2]
[330336508,1719261040251,-500.0,0.00016438,2]
[330336509,1719261040261,-500.0,0.00016438,2]
[330336510,1719261040272,-500.0,0.00016438,2]
[330336511,1719261040283,-500.0,0.00016438,2]
[330336512,1719261040300,-500.0,0.00016438,2]
[330336513,1719261040310,-500.0,0.00016438,2]
[330336514,1719261040321,-500.0,0.00016438,2]
[330336515,1719261040332,-500.0,0.00016438,2]
[330336516,1719261040343,-500.0,0.00016438,2]
[330336517,1719261040354,-504.51931464,0.00016438,2]
[330336518,1719261040364,-253.93514534,0.00016438,2]
[330336519,1719261040375,-500.0,0.00016438,2]
[330336520,1719261040385,-500.0,0.00016438,2]
[330336521,1719261040396,-500.0,0.00016438,2]
[330336522,1719261040406,-500.0,0.00016438,2]
[330336523,1719261040415,-205.81766206,0.00016438,2]
[330336524,1719261040425,-217.36877462,0.00016438,2]
[330336525,1719261040435,-500.0,0.00016438,2]
[330336526,1719261040445,-500.0,0.00016438,2]
[330336527,1719261040455,-500.0,0.00016438,2]
[330336528,1719261040464,-500.0,0.00016438,2]
[330336529,1719261040473,-500.0,0.00016438,2]
[330336530,1719261040481,-500.0,0.00016438,2]
[330336531,1719261040489,-500.0,0.00016438,2]
[330336532,1719261040497,-500.0,0.00016438,2]
[330336533,1719261040505,-501.32110454,0.00016438,2]
[330336534,1719261040514,-500.0,0.00016438,2]
[330336535,1719261040522,-642.5464799,0.00016438,2]
[330336536,1719261040532,-500.0,0.00016438,2]
[330336537,1719261040547,-500.0,0.00016438,2]
[330336538,1719261040557,-500.0,0.00016438,2]
[330336539,1719261040565,-500.0,0.00016438,2]
[330336540,1719261040572,-500.0,0.00016438,2]
[330336541,1719261040581,-500.0,0.00016438,2]
[330336542,1719261040590,-178.85731788,0.00016438,2]
[330336543,1719261040599,-500.0,0.00016438,2]
[330336544,1719261040608,-500.0,0.00016438,2]
[330336545,1719261040616,-415.5871649,0.00016438,2]
[330336546,1719261040628,-500.0,0.00016438,2]
[330336547,1719261040639,-500.65649188,0.00016438,2]
[330336548,1719261040650,-500.0,0.00016438,2]
[330336549,1719261040660,-515.52002573,0.00016438,2]
[330336550,1719261040671,-500.0,0.00016438,2]
[330336551,1719261040681,-500.0,0.00016438,2]
[330336552,1719261040691,-500.0,0.00016438,2]
[330336553,1719261040703,-500.0,0.00016438,2]
[330336554,1719261040713,-510.73280205,0.00016438,2]
[330336556,1719261040723,-500.0,0.00016438,2]
[330336557,1719261040734,-302.70250165,0.00016438,2]
[330336559,1719261040745,-500.0,0.00016438,2]
[330336560,1719261040755,-500.0,0.00016438,2]
[330336561,1719261040765,-500.0,0.00016438,2]
[330336562,1719261040775,-500.0,0.00016438,2]
[330336563,1719261040785,-500.0,0.00016438,2]
[330336564,1719261040802,-501.19407016,0.00016438,2]
[330336565,1719261040812,-500.0,0.00016438,2]
[330336566,1719261040822,-500.0,0.00016438,2]
[330336567,1719261040833,-500.0,0.00016438,2]
[330336568,1719261040843,-500.44662187,0.00016438,2]
[330336569,1719261040853,-500.0,0.00016438,2]
[330336570,1719261040863,-500.0,0.00016438,2]
[330336571,1719261040874,-500.0,0.00016438,2]
[330336572,1719261040885,-500.0,0.00016438,2]
[330336573,1719261040896,-500.0,0.00016438,2]
[330336574,1719261040906,-500.0,0.00016438,2]
[330336575,1719261040916,-500.0,0.00016438,2]
[330336576,1719261040927,-500.0,0.00016438,2]
[330336577,1719261040937,-504.18179672,0.00016438,2]
[330336578,1719261040947,-500.0,0.00016438,2]
[330336579,1719261040957,-504.64572553,0.00016438,2]
[330336580,1719261040968,-990.12,0.00016438,2]
[330336582,1719261040978,-500.0,0.00016438,2]
[330336584,1719261040989,-500.0,0.00016438,2]
[330336586,1719261040999,-500.0,0.00016438,2]
[330336588,1719261041009,-504.29842193,0.00016438,2]
[330336590,1719261041019,-500.0,0.00016438,2]
[330336592,1719261041030,-500.0,0.00016438,2]
[330336601,1719261041177,-500.0,0.00016438,2]
[330336602,1719261041189,-500.0,0.00016438,2]
[330336604,1719261041200,-500.0,0.00016438,2]
[330336607,1719261041211,-500.0,0.00016438,2]
[330336608,1719261041222,-500.0,0.00016438,2]
[330336610,1719261041232,-500.0,0.00016438,2]
[330336612,1719261041243,-500.0,0.00016438,2]
[330336614,1719261041253,-500.0,0.00016438,2]
[330336616,1719261041263,-500.0,0.00016438,2]
[330336617,1719261041273,-500.0,0.00016438,2]
[330336619,1719261041283,-558.65576517,0.00016438,2]
[330336621,1719261041300,-554.35155091,0.00016438,2]
[330336623,1719261041310,-500.0,0.00016438,2]
[330336625,1719261041319,-500.0,0.00016438,2]
[330336626,1719261041329,-500.0,0.00016438,2]
[330336628,1719261041338,-500.0,0.00016438,2]
[330336630,1719261041348,-1280.04,0.00016438,2]
[330336631,1719261041358,-500.0,0.00016438,2]
[330336633,1719261041368,-500.0,0.00016438,2]
[330336635,1719261041378,-500.0,0.00016438,2]
[330336637,1719261041387,-500.0,0.00016438,2]
[330336639,1719261041397,-500.0,0.00016438,2]
[330336640,1719261041407,-500.0,0.00016438,2]
[330336642,1719261041417,-439.70153901,0.00016438,2]
[330336644,1719261041427,-890.28,0.00016438,2]
[330336646,1719261041438,-786.04,0.00016438,2]
[330336648,1719261041447,-500.0,0.00016438,2]
[330336650,1719261041458,-500.0,0.00016438,2]
[330336652,1719261041468,-500.0,0.00016438,2]
[330336654,1719261041478,-500.0,0.00016438,2]
[330336656,1719261041489,-500.0,0.00016438,2]
[330336658,1719261041499,-500.0,0.00016438,2]
[330336660,1719261041509,-500.0,0.00016438,2]
[330336662,1719261041519,-500.0,0.00016438,2]
[330336664,1719261041530,-500.0,0.00016438,2]
[330336666,1719261041545,-500.0,0.00016438,2]
[330336667,1719261041555,-508.83724709,0.00016438,2]
[330336669,1719261041565,-500.0,0.00016438,2]
[330336671,1719261041574,-500.0,0.00016438,2]
[330336673,1719261041584,-500.0,0.00016438,2]
[330336676,1719261041602,-539.2,0.00016438,2]
[330336677,1719261041612,-523.67355859,0.00016438,2]
[330336679,1719261041621,-500.0,0.00016438,2]
[330336681,1719261041631,-492.1976022,0.00016438,2]
[330336683,1719261041645,-549.21854551,0.00016438,2]
[330336685,1719261041654,-500.0,0.00016438,2]
[330336687,1719261041664,-500.0,0.00016438,2]
[330336689,1719261041676,-500.0,0.00016438,2]
[330336691,1719261041686,-505.82639184,0.00016438,2]
[330336693,1719261041697,-500.0,0.00016438,2]
[330336695,1719261041707,-500.0,0.00016438,2]
[330336697,1719261041717,-500.0,0.00016438,2]
[330336699,1719261041731,-500.0,0.00016438,2]
[330336702,1719261041741,-500.0,0.00016438,2]
[330336704,1719261041751,-500.0,0.00016438,2]
[330336706,1719261041761,-234.81807462,0.00016438,2]
[330336708,1719261041772,-500.0,0.00016438,2]
[330336710,1719261041782,-630.85030799,0.00016438,2]
[330336712,1719261041797,-500.0,0.00016438,2]
[330336713,1719261041807,-500.0,0.00016438,2]
[330336715,1719261041816,-1042.62,0.00016438,2]
[330336717,1719261041826,-615.35941525,0.00016438,2]
[330336718,1719261041836,-500.0,0.00016438,2]
[330336720,1719261041845,-500.0,0.00016438,2]
[330336722,1719261041855,-500.0,0.00016438,2]
[330336723,1719261041864,-565.86,0.00016438,2]
[330336725,1719261041874,-565.86,0.00016438,2]
[330336727,1719261041884,-565.86,0.00016438,2]
[330336729,1719261041893,-500.0,0.00016438,2]
[330336730,1719261041903,-500.0,0.00016438,2]
[330336732,1719261041913,-565.86,0.00016438,2]
[330336734,1719261041922,-565.86,0.00016438,2]
[330336735,1719261041931,-565.86,0.00016438,2]
[330336737,1719261041941,-565.86,0.00016438,2]
[330336739,1719261041950,-565.86,0.00016438,2]
[330336740,1719261041960,-565.86,0.00016438,2]
[330336742,1719261041969,-565.86,0.00016438,2]
[330336744,1719261041979,-500.0,0.00016438,2]
[330336747,1719261041990,-500.0,0.00016438,2]
[330336749,1719261042000,-500.0,0.00016438,2]
[330336752,1719261042010,-500.0,0.00016438,2]
[330336754,1719261042020,-500.0,0.00016438,2]
[330336756,1719261042030,-500.0,0.00016438,2]
[330336757,1719261042043,-500.0,0.00016438,2]
[330336759,1719261042053,-500.0,0.00016438,2]
[330336761,1719261042062,-500.0,0.00016438,2]
[330336763,1719261042072,-500.0,0.00016438,2]
[330336764,1719261042082,-500.0,0.00016438,2]
[330336766,1719261042092,-500.0,0.00016438,2]
[330336768,1719261042102,-500.0,0.00016438,2]
[330336770,1719261042112,-532.30448464,0.00016438,2]
[330336772,1719261042122,-505.72489785,0.00016438,2]
[330336773,1719261042132,-500.0,0.00016438,2]
[330336775,1719261042142,-500.0,0.00016438,2]
[330336777,1719261042152,-500.0,0.00016438,2]
[330336779,1719261042162,-500.0,0.00016438,2]
[330336780,1719261042172,-500.0,0.00016438,2]
[330336782,1719261042182,-526.10548931,0.00016438,2]
[330336784,1719261042192,-500.0,0.00016438,2]
[330336785,1719261042202,-500.0,0.00016438,2]
[330336787,1719261042212,-478.48029184,0.00016438,2]
[330336789,1719261042222,-500.0,0.00016438,2]
[330336791,1719261042232,-500.0,0.00016438,2]
[330336792,1719261042242,-500.0,0.00016438,2]
[330336794,1719261042252,-500.0,0.00016438,2]
[330336796,1719261042263,-500.0,0.00016438,2]
[330336798,1719261042273,-843.3,0.00016438,2]
[330336800,1719261042285,-531.22598985,0.00016438,2]
[330336802,1719261042301,-500.0,0.00016438,2]
[330336803,1719261042310,-500.0,0.00016438,2]
[330336805,1719261042320,-500.0,0.00016438,2]
[330336807,1719261042330,-500.0,0.00016438,2]
[330336809,1719261042340,-435.11972779,0.00016438,2]
[330336810,1719261042350,-500.0,0.00016438,2]
[330336812,1719261042360,-500.0,0.00016438,2]
[330336814,1719261042370,-500.0,0.00016438,2]
[330336816,1719261042380,-500.0,0.00016438,2]
[330336818,1719261042391,-500.0,0.00016438,2]
[330336819,1719261042400,-500.0,0.00016438,2]
[330336821,1719261042410,-500.0,0.00016438,2]
[330336823,1719261042419,-500.0,0.00016438,2]
[330336825,1719261042429,-514.0,0.00016438,2]
[330336827,1719261042438,-500.0,0.00016438,2]
[330336828,1719261042448,-500.0,0.00016438,2]
[330336830,1719261042458,-500.0,0.00016438,2]
[330336832,1719261042467,-500.0,0.00016438,2]
[330336833,1719261042477,-500.0,0.00016438,2]
[330336835,1719261042488,-500.0,0.00016438,2]
[330336837,1719261042498,-505.86142669,0.00016438,2]
[330336839,1719261042508,-532.16776344,0.00016438,2]
[330336841,1719261042519,-157.10478909,0.00016438,2]
[330336842,1719261042530,-523.48,0.00016438,2]
[330336844,1719261042548,-985.09,0.00016438,2]
[330336846,1719261042559,-500.0,0.00016438,2]
[330336848,1719261042570,-500.0,0.00016438,2]
[330336850,1719261042581,-500.0,0.00016438,2]
[330336851,1719261042593,-500.0,0.00016438,2]
[330336853,1719261042605,-500.0,0.00016438,2]
[330336855,1719261042617,-500.0,0.00016438,2]
[330336857,1719261042632,-500.0,0.00016438,2]
[330336858,1719261042649,-500.0,0.00016438,2]
[330336860,1719261042660,-500.0,0.00016438,2]
[330336862,1719261042672,-500.0,0.00016438,2]
[330336864,1719261042682,-500.0,0.00016438,2]
[330336865,1719261042694,-500.0,0.00016438,2]
[330336867,1719261042706,-500.0,0.00016438,2]
[330336869,1719261042717,-500.0,0.00016438,2]
[330336871,1719261042728,-500.0,0.00016438,2]
[330336873,1719261042739,-500.0,0.00016438,2]
[330336874,1719261042750,-314.64604994,0.00016438,2]
[330336876,1719261042760,-500.0,0.00016438,2]
[330336878,1719261042770,-500.0,0.00016438,2]